bitfinex/quotes_SOLUSD_20220307
["timestamp","ask_amount","ask_price","bid_price","bid_amount"]
[1646615708015,1.61719967,83.077,83.021,24.8622]
[1646615708915,1.61719967,83.077,83.022,11.59044663]
[1646615709116,1.61719967,83.081,83.022,11.59044663]
[1646615709617,1.61719967,83.08,83.022,11.59044663]
[1646615709821,1.61719967,83.079,83.03,18.0635]
[1646615710118,1.61719967,83.083,83.031,62.32148641]
[1646615710317,1.61719967,83.086,83.032,24.8622]
[1646615710919,1.61719967,83.085,83.032,24.8622]
[1646615711419,30.21281219,83.084,83.032,24.8622]
[1646615711620,1.61719967,83.077,83.032,24.8622]
[1646615712021,1.61719967,83.077,83.033,11.59044663]
[1646615713522,1.61719967,83.076,83.033,11.59044663]
[1646615714724,1.61719967,83.075,83.033,11.59044663]
[1646615715726,1.61719967,83.079,83.033,11.59044663]
[1646615715925,1.61719967,83.076,83.033,11.59044663]
[1646615716149,10.28719967,83.076,83.033,11.59044663]
[1646615716325,1.61719967,83.074,83.033,11.59044663]
[1646615718229,1.61719967,83.071,83.033,11.59044663]
[1646615719727,6.019,83.099,83.033,11.59044663]
[1646615719728,1.61719967,83.074,83.033,11.59044663]
[1646615720129,1.61719967,83.078,83.033,11.59044663]
[1646615720329,1.61719967,83.077,83.033,11.59044663]
[1646615720530,1.61719967,83.078,83.033,11.59044663]
[1646615720931,1.61719967,83.08,83.033,11.59044663]
[1646615722332,1.61719967,83.079,83.033,11.59044663]
[1646615723954,1.61719967,83.081,83.04,18.0619]
[1646615724155,1.61719967,83.084,83.05,13.94]
[1646615724454,1.61719967,83.085,83.05,13.94]
[1646615725058,1.61719967,83.086,83.051,22.9623]
[1646615725756,1.61719967,83.085,83.051,22.9623]
[1646615726359,1.61719967,83.084,83.051,22.9623]
[1646615726557,1.61719967,83.09,83.051,22.9623]
[1646615726857,6.019,83.12,83.051,22.9623]
[1646615726858,1.61719967,83.093,83.051,22.9623]
[1646615727157,1.61719967,83.095,83.051,22.9623]
[1646615727761,1.61719967,83.095,83.06,18.0572]
[1646615727959,0.11719967,83.097,83.061,56.36228545]
[1646615728161,0.11719967,83.097,83.062,23.4975]
[1646615728660,9.71274881,83.12,83.062,23.4975]
[1646615729260,3.17595183,83.118,83.062,23.4975]
[1646615729462,9.19295183,83.117,83.062,23.4975]
[1646615729660,6.53679698,83.116,83.062,23.4975]
[1646615729860,6.017,83.115,83.062,23.4975]
[1646615730065,12.55379698,83.116,83.062,23.4975]
[1646615730261,6.53679698,83.114,83.062,23.4975]
[1646615730463,8.37,83.114,83.062,23.4975]
[1646615730661,3.17595183,83.109,83.063,11.59044663]
[1646615730863,6.017,83.108,83.063,11.59044663]
[1646615731063,3.17595183,83.106,83.063,11.59044663]
[1646615731263,3.17595183,83.104,83.063,11.59044663]
[1646615731463,11.72734834,83.103,83.063,11.59044663]
[1646615731762,3.17595183,83.099,83.063,11.26482346]
[1646615731963,6.018,83.098,83.063,11.26482346]
[1646615732364,6.53679698,83.097,83.063,11.26482346]
[1646615732567,6.018,83.096,83.063,11.26482346]
[1646615732765,6.53679698,83.095,83.063,11.26482346]
[1646615732964,6.018,83.094,83.063,11.26482346]
[1646615733365,6.018,83.101,83.063,11.26482346]
[1646615733566,6.53829515,83.1,83.064,59.5994087]
[1646615733767,3.17595183,83.104,83.064,59.5994087]
[1646615734172,3.17595183,83.099,83.041,11.26482346]
[1646615735169,3.17595183,83.099,83.042,52.73621359]
[1646615735568,4.71424698,83.102,83.043,40.0]
[1646615735770,3.25835462,83.1,83.043,40.0]
[1646615735967,7.9726016,83.102,83.042,52.73621359]
[1646615736168,3.25835462,83.101,83.042,52.73621359]
[1646615736767,3.25835462,83.101,83.043,11.26482346]
[1646615737469,3.25835462,83.101,83.044,24.6613]
[1646615738069,3.25835462,83.1,83.044,24.6613]
[1646615739071,3.25835462,83.099,83.044,24.6613]
[1646615739871,3.25835462,83.1,83.044,24.6613]
[1646615740071,9.27635462,83.099,83.044,24.6613]
[1646615740473,3.25835462,83.099,83.045,11.26482346]
[1646615741973,3.25835462,83.1,83.045,11.26482346]
[1646615742172,6.018,83.099,83.045,11.26482346]
[1646615742572,9.27635462,83.099,83.045,11.26482346]
[1646615742775,3.25835462,83.099,83.045,11.26482346]
[1646615742973,3.25835462,83.099,83.05,13.94]
[1646615743174,9.27635462,83.102,83.05,13.94]
[1646615743374,26.73085462,83.103,83.051,11.26482346]
[1646615744274,23.4725,83.103,83.051,11.26482346]
[1646615744674,3.25835462,83.107,83.051,11.26482346]
[1646615744873,2.94530219,83.107,83.051,11.26482346]
[1646615745277,2.94530219,83.107,83.06,18.0575]
[1646615745474,2.94530219,83.107,83.06,31.9975]
[1646615745674,6.018,83.127,83.061,24.2574]
[1646615745884,24.226,83.128,83.061,24.2574]
[1646615746079,20.53393745,83.126,83.061,24.2574]
[1646615746476,24.226,83.128,83.061,24.2574]
[1646615747179,24.226,83.128,83.062,11.26482346]
[1646615747779,20.55002768,83.127,83.062,11.26482346]
[1646615748880,6.017,83.126,83.062,11.26482346]
[1646615749579,6.017,83.127,83.062,11.26482346]
[1646615749780,20.56455266,83.126,83.062,11.26482346]
[1646615749981,6.017,83.125,83.062,11.26482346]
[1646615750180,20.56455266,83.124,83.062,11.26482346]
[1646615750384,6.017,83.123,83.062,11.26482346]
[1646615750783,20.56455266,83.122,83.062,11.26482346]
[1646615751181,6.017,83.121,83.062,11.26482346]
[1646615751783,6.017,83.126,83.062,11.26482346]
[1646615752082,20.56741839,83.12,83.062,11.26482346]
[1646615752282,126.517,83.119,83.062,11.26482346]
[1646615752684,120.5,83.117,83.062,11.26482346]
[1646615752885,6.017,83.116,83.062,11.26482346]
[1646615753084,26.58441839,83.116,83.062,11.26482346]
[1646615753484,6.017,83.116,83.062,11.26482346]
[1646615754283,6.017,83.123,83.062,11.26482346]
[1646615754683,20.58625901,83.122,83.062,11.26482346]
[1646615754883,6.017,83.121,83.062,11.26482346]
[1646615755084,20.58625901,83.12,83.062,11.26482346]
[1646615755586,20.58625901,83.127,83.062,11.26482346]
[1646615758589,20.08625901,83.127,83.063,120.5]
[1646615758789,6.017,83.15,83.063,175.1086102]
[1646615758988,4.7250953,83.163,83.065,120.5]
[1646615759189,4.7250953,83.163,83.067,120.5]
[1646615759389,4.7250953,83.163,83.08,13.94]
[1646615759588,4.7250953,83.163,83.081,23.5314]
[1646615759995,45.57719053,83.162,83.082,46.87110264]
[1646615761088,45.57719053,83.162,83.09,18.0512]
[1646615761392,45.57719053,83.162,83.082,46.87110264]
[1646615761393,120.5,83.161,83.082,46.87110264]
[1646615761591,120.5,83.161,83.07,13.94]
[1646615761592,4.05766807,83.152,83.07,13.94]
[1646615761791,120.5,83.145,83.064,11.26482346]
[1646615761990,5.73986948,83.143,83.064,11.26482346]
[1646615762189,126.23986948,83.143,83.031,23.646]
[1646615762390,120.5,83.141,83.031,23.646]
[1646615762590,6.017,83.14,83.032,59.11672421]
[1646615762790,120.5,83.139,83.032,59.11672421]
[1646615762993,5.10258512,83.128,83.032,59.11672421]
[1646615763192,120.5,83.126,83.032,59.11672421]
[1646615763394,6.018,83.125,83.032,59.11672421]
[1646615765615,6.018,83.125,83.033,11.26482346]
[1646615766018,6.018,83.125,83.04,18.0616]
[1646615766217,6.018,83.125,83.041,23.4962]
[1646615767516,24.4135,83.127,83.05,18.0596]
[1646615767715,24.4135,83.127,83.051,23.4962]
[1646615768817,24.4135,83.127,83.052,11.26482346]
[1646615770417,6.017,83.126,83.06,18.0571]
[1646615770618,24.4135,83.127,83.07,13.94]
[1646615770819,24.4135,83.127,83.072,57.26515223]
[1646615771420,6.016,83.149,83.072,57.26515223]
[1646615771623,24.4154,83.148,83.072,57.26515223]
[1646615771822,6.016,83.147,83.073,11.26482346]
[1646615773224,6.016,83.147,83.08,18.0527]
[1646615773422,6.016,83.147,83.081,23.0276]
[1646615774828,6.016,83.147,83.082,11.26482346]
[1646615775431,24.4154,83.148,83.082,11.26482346]
[1646615776031,6.015,83.175,83.09,18.0502]
[1646615776231,30.7122,83.175,83.1,13.94]
[1646615776433,30.7122,83.175,83.101,69.90102513]
[1646615778032,30.7122,83.175,83.102,11.26482346]
[1646615779035,24.6972,83.175,83.102,11.26482346]
[1646615779434,23.1972,83.175,83.102,11.26482346]
[1646615782436,23.1972,83.175,83.11,18.0461]
[1646615782637,6.013,83.193,83.12,13.94]
[1646615782836,6.011,83.207,83.121,23.6139]
[1646615783036,6.011,83.212,83.121,23.6139]
[1646615783536,40.48863653,83.204,83.13,18.0405]
[1646615783736,28.5864,83.203,83.14,13.94]
[1646615784538,28.5864,83.203,83.141,23.6139]
[1646615785840,6.011,83.214,83.141,32.6639]
[1646615786044,6.011,83.232,83.142,24.3533]
[1646615786439,6.01,83.237,83.142,65.71313201]
[1646615787642,6.01,83.237,83.143,30.09500855]
[1646615788246,6.01,83.237,83.15,18.037]
[1646615788444,6.01,83.237,83.16,13.94]
[1646615788744,6.01,83.237,83.161,80.26135232]
[1646615788945,20.03209576,83.236,83.161,80.26135232]
[1646615789147,6.009,83.235,83.161,91.52617578]
[1646615789345,120.5,83.238,83.162,6.009]
[1646615791347,47.4643,83.239,83.162,6.009]
[1646615791547,47.4643,83.239,83.17,18.0332]
[1646615791748,6.009,83.246,83.18,13.94]
[1646615791948,6.009,83.246,83.181,6.008]
[1646615792346,38.14791317,83.245,83.181,6.008]
[1646615792546,30.0844,83.244,83.182,24.3523]
[1646615792746,120.5,83.243,83.182,24.3523]
[1646615792947,6.008,83.242,83.182,24.3523]
[1646615793752,6.008,83.243,83.182,24.3523]
[1646615795450,6.008,83.243,83.183,11.26482346]
[1646615796549,126.508,83.243,83.183,11.26482346]
[1646615796749,132.28484982,83.243,83.183,11.26482346]
[1646615797350,126.27684982,83.243,83.183,11.26482346]
[1646615797551,126.27684982,83.243,83.183,17.27282346]
[1646615797750,5.77684982,83.243,83.183,11.26482346]
[1646615798551,5.77684982,83.243,83.181,17.27282346]
[1646615801270,6.008,83.242,83.181,11.26482346]
[1646615801871,12.538,83.242,83.182,23.8607]
[1646615802471,5.03,83.242,83.183,17.27282346]
[1646615802971,38.5439513,83.242,83.183,17.27282346]
[1646615803773,5.03,83.242,83.183,17.27282346]
[1646615803972,24.0764,83.244,83.183,17.27282346]
[1646615804576,113.4,83.247,83.183,17.27282346]
[1646615804873,113.4,83.247,83.183,48.96249867]
[1646615805075,6.008,83.27,83.183,48.96249867]
[1646615805472,6.007,83.282,83.183,48.96249867]
[1646615806075,32.12111013,83.281,83.183,48.96249867]
[1646615806274,6.007,83.28,83.191,55.0600329]
[1646615806476,6.007,83.28,83.2,13.94]
[1646615806679,6.007,83.28,83.201,29.2396]
[1646615807181,6.007,83.28,83.201,52.731]
[1646615808080,126.507,83.28,83.201,52.731]
[1646615808481,125.32611802,83.273,83.201,46.725]
[1646615808679,6.006,83.272,83.201,46.725]
[1646615809082,120.5,83.27,83.201,46.725]
[1646615809281,6.007,83.269,83.201,46.725]
[1646615809684,6.007,83.269,83.202,11.26482346]
[1646615811786,120.5,83.268,83.203,6.007]
[1646615811988,6.007,83.267,83.203,6.007]
[1646615812689,6.007,83.267,83.204,11.26482346]
[1646615812888,126.507,83.267,83.204,11.26482346]
[1646615813289,124.78546238,83.259,83.204,11.26482346]
[1646615813488,6.007,83.258,83.204,11.26482346]
[1646615813889,120.5,83.257,83.204,11.26482346]
[1646615814088,6.007,83.256,83.204,11.26482346]
[1646615814289,120.5,83.255,83.204,11.26482346]
[1646615814489,6.007,83.254,83.204,11.26482346]
[1646615815094,27.3271953,83.258,83.204,11.26482346]
[1646615815893,27.3271953,83.258,83.193,35.12832346]
[1646615816091,22.6021,83.258,83.194,6.007]
[1646615816892,4.7250953,83.267,83.194,6.007]
[1646615817092,4.7250953,83.267,83.2,18.0257]
[1646615817393,6.007,83.286,83.21,13.94]
[1646615817591,6.006,83.298,83.211,29.8695]
[1646615817790,6.006,83.298,83.212,23.632]
[1646615817990,6.006,83.298,83.213,6.005]
[1646615818191,4.95477801,83.297,83.213,6.005]
[1646615818391,6.005,83.296,83.213,6.005]
[1646615818993,24.0013,83.295,83.214,11.26482346]
[1646615819193,6.005,83.294,83.216,55.71122013]
[1646615819393,6.005,83.294,83.22,13.94]
[1646615819595,6.005,83.294,83.221,23.4324]
[1646615819795,6.005,83.294,83.222,6.005]
[1646615822095,6.005,83.294,83.223,11.26482346]
[1646615822295,6.005,83.294,83.224,6.005]
[1646615822496,6.005,83.294,83.223,11.26482346]
[1646615822497,4.9416247,83.293,83.223,11.26482346]
[1646615822702,6.005,83.292,83.223,11.26482346]
[1646615822896,126.505,83.292,83.223,11.26482346]
[1646615824003,131.2300953,83.292,83.223,11.26482346]
[1646615824197,120.5,83.289,83.223,11.26482346]
[1646615824496,6.005,83.288,83.223,11.26482346]
[1646615825202,6.005,83.288,83.217,11.26482346]
[1646615825798,120.5,83.286,83.217,11.26482346]
[1646615826001,125.53030906,83.284,83.217,11.26482346]
[1646615826199,120.5,83.282,83.217,11.26482346]
[1646615826499,120.5,83.28,83.217,11.26482346]
[1646615826700,6.006,83.279,83.217,11.26482346]
[1646615826900,6.523157,83.279,83.217,11.26482346]
[1646615827100,6.523157,83.294,83.23,13.94]
[1646615827399,6.523157,83.294,83.231,24.4442]
[1646615828199,6.523157,83.294,83.232,11.26482346]
[1646615829702,6.523157,83.307,83.232,11.26482346]
[1646615829903,6.003,83.306,83.24,18.0168]
[1646615830205,6.523157,83.305,83.24,31.9568]
[1646615830406,6.003,83.304,83.242,48.16787741]
[1646615830603,6.523157,83.303,83.242,48.16787741]
[1646615830904,6.003,83.302,83.242,48.16787741]
[1646615831102,6.523157,83.301,83.242,48.16787741]
[1646615831304,6.003,83.3,83.243,11.26482346]
[1646615831504,6.523157,83.299,83.243,11.26482346]
[1646615831703,6.003,83.298,83.243,11.26482346]
[1646615832104,23.8865,83.327,83.25,18.0145]
[1646615832307,6.51976583,83.326,83.251,24.493]
[1646615832524,47.47834339,83.326,83.251,24.493]
[1646615832928,6.51976583,83.325,83.251,24.493]
[1646615834328,6.51976583,83.325,83.252,11.26482346]
[1646615834627,6.51976583,83.326,83.252,11.26482346]
[1646615834827,5.51479737,83.325,83.252,11.26482346]
[1646615835027,3.23658355,83.318,83.252,11.26482346]
[1646615835227,5.51479737,83.325,83.252,11.26482346]
[1646615835228,3.23658355,83.314,83.252,11.26482346]
[1646615835430,6.003,83.313,83.252,11.26482346]
[1646615835628,6.003,83.314,83.252,11.26482346]
[1646615835827,6.51976583,83.313,83.252,11.26482346]
[1646615836028,6.003,83.312,83.252,11.26482346]
[1646615836230,6.51976583,83.311,83.252,11.26482346]
[1646615836429,126.503,83.31,83.252,11.26482346]
[1646615836628,3.23658355,83.306,83.252,11.26482346]
[1646615836828,4.04148977,83.304,83.252,11.26482346]
[1646615837028,120.5,83.302,83.252,11.26482346]
[1646615837231,120.5,83.3,83.252,11.26482346]
[1646615837428,127.01976583,83.299,83.252,11.26482346]
[1646615837630,6.51976583,83.298,83.239,63.79275705]
[1646615837828,6.51976583,83.298,83.24,24.5013]
[1646615838430,3.23658355,83.302,83.24,24.5013]
[1646615838732,6.51976583,83.302,83.24,24.5013]
[1646615838930,9.75634938,83.302,83.241,49.93766522]
[1646615839832,6.003,83.301,83.241,49.93766522]
[1646615840032,6.51976583,83.3,83.241,49.93766522]
[1646615840431,6.51976583,83.301,83.241,49.93766522]
[1646615840635,6.51976583,83.301,83.242,11.26482346]
[1646615841236,5.24133359,83.299,83.242,11.26482346]
[1646615841437,126.503,83.298,83.242,11.26482346]
[1646615841634,72.26,83.287,83.242,11.26482346]
[1646615841934,3.23658355,83.278,83.242,11.26482346]
[1646615842133,120.5,83.276,83.242,11.26482346]
[1646615842333,120.5,83.274,83.242,11.26482346]
[1646615842534,6.51976583,83.273,83.242,11.26482346]
[1646615842734,126.505,83.272,83.242,11.26482346]
[1646615843136,120.5,83.27,83.242,11.26482346]
[1646615843335,5.49533267,83.268,83.242,11.26482346]
[1646615843536,6.005,83.267,83.242,11.26482346]
[1646615843735,6.005,83.267,83.212,11.26482346]
[1646615843937,120.5,83.265,83.212,11.26482346]
[1646615844138,6.006,83.264,83.212,11.26482346]
[1646615844538,4.92527399,83.272,83.212,11.26482346]
[1646615844739,6.52349275,83.271,83.213,63.64261818]
[1646615845339,120.5,83.27,83.213,63.64261818]
[1646615845541,6.52349275,83.269,83.213,63.64261818]
[1646615845743,120.5,83.268,83.213,63.64261818]
[1646615845940,128.37,83.268,83.213,63.64261818]
[1646615846141,6.52349275,83.267,83.213,63.64261818]
[1646615846342,126.506,83.266,83.213,63.64261818]
[1646615846542,126.506,83.266,83.212,11.26482346]
[1646615846742,4.0059929,83.263,83.212,11.26482346]
[1646615846943,120.5,83.261,83.203,11.26482346]
[1646615847143,120.5,83.259,83.203,11.26482346]
[1646615847341,120.5,83.257,83.203,11.26482346]
[1646615847544,192.76,83.255,83.203,11.26482346]
[1646615847743,123.73658355,83.253,83.203,11.26482346]
[1646615847942,120.5,83.251,83.203,11.26482346]
[1646615848144,1.62162096,83.231,83.203,11.26482346]
[1646615848343,122.12162096,83.23,83.203,11.26482346]
[1646615848942,1.62162096,83.229,83.203,11.26482346]
[1646615849141,120.5,83.23,83.203,11.26482346]
[1646615849542,120.5,83.224,83.163,6.007]
[1646615849742,120.5,83.224,83.139,6.008]
[1646615849743,1.62162096,83.216,83.139,6.008]
[1646615849942,125.6448209,83.214,83.131,29.2019]
[1646615850144,1.62162096,83.213,83.132,60.72133856]
[1646615850345,128.13262096,83.212,83.132,60.72133856]
[1646615850546,128.13262096,83.212,83.133,6.011]
[1646615850949,1.62162096,83.212,83.133,6.011]
[1646615851186,1.62162096,83.219,83.134,57.9260483]
[1646615851549,1.62162096,83.225,83.136,120.5]
[1646615851749,1.62162096,83.225,83.15,13.94]
[1646615851950,1.62162096,83.23,83.151,53.3494]
[1646615852150,1.62162096,83.232,83.151,111.2754483]
[1646615852550,1.62162096,83.233,83.152,57.9260483]
[1646615852749,7.63162096,83.232,83.152,57.9260483]
[1646615852950,7.63162096,83.232,83.151,47.3394]
[1646615852951,6.01,83.232,83.16,18.0353]
[1646615853151,1.62162096,83.242,83.17,13.94]
[1646615853349,1.62162096,83.244,83.171,29.7588]
[1646615853750,1.62162096,83.244,83.172,58.01186916]
[1646615853951,1.62162096,83.245,83.173,6.009]
[1646615854152,1.62162096,83.245,83.18,18.0306]
[1646615854353,1.62162096,83.246,83.181,23.7498]
[1646615854550,25.46782096,83.247,83.181,23.7498]
[1646615854953,23.8462,83.247,83.181,23.7498]
[1646615855353,1.62162096,83.246,83.181,23.7498]
[1646615855553,1.62162096,83.242,83.181,23.7498]
[1646615855954,5.6045423,83.24,83.181,23.7498]
[1646615856260,1.62162096,83.233,83.181,23.7498]
[1646615856453,120.5,83.231,83.181,23.7498]
[1646615857554,7.63062096,83.232,83.181,23.7498]
[1646615857956,1.62162096,83.235,83.181,23.7498]
[1646615858157,1.62162096,83.237,83.181,23.7498]
[1646615858760,6.008,83.236,83.181,23.7498]
[1646615859158,41.06035336,83.235,83.181,23.7498]
[1646615859357,120.5,83.234,83.181,23.7498]
[1646615859557,4.60666256,83.233,83.181,23.7498]
[1646615859759,1.62162096,83.232,83.181,23.7498]
[1646615860358,1.62162096,83.233,83.181,23.7498]
[1646615860559,12.28153343,83.232,83.181,23.7498]
[1646615860757,6.27253343,83.232,83.181,23.7498]
[1646615861757,7.63062096,83.235,83.181,23.7498]
[1646615861957,1.62162096,83.234,83.181,23.7498]
[1646615862159,6.009,83.233,83.181,23.7498]
[1646615862857,7.63062096,83.233,83.181,23.7498]
[1646615863458,1.62162096,83.236,83.181,23.7498]
[1646615863858,1.62162096,83.238,83.181,23.7498]
[1646615864060,1.62162096,83.234,83.181,23.7498]
[1646615864958,1.62162096,83.236,83.181,23.7498]
[1646615865157,1.62162096,83.237,83.181,23.7498]
[1646615865758,1.62162096,83.236,83.181,23.7498]
[1646615865960,1.62162096,83.232,83.181,23.7498]
[1646615866979,1.62162096,83.231,83.181,23.7498]
[1646615867380,1.62162096,83.232,83.181,23.7498]
[1646615867581,1.62162096,83.231,83.181,23.7498]
[1646615867982,1.62162096,83.229,83.181,23.7498]
[1646615868385,1.62162096,83.219,83.181,23.7498]
[1646615868586,1.62162096,83.217,83.181,23.7498]
[1646615868782,1.62162096,83.215,83.181,23.7498]
[1646615869186,1.62162096,83.216,83.181,23.7498]
[1646615869783,1.62162096,83.215,83.181,23.7498]
[1646615869984,1.62162096,83.21,83.181,23.7498]
[1646615871387,1.62162096,83.211,83.181,23.7498]
[1646615871585,1.62162096,83.214,83.181,23.7498]
[1646615872187,1.62162096,83.22,83.181,23.7498]
[1646615872687,1.62162096,83.219,83.181,23.7498]
[1646615873287,1.62162096,83.218,83.181,23.7498]
[1646615873889,1.62162096,83.217,83.181,23.7498]
[1646615875991,1.62162096,83.216,83.181,29.7588]
[1646615877192,1.62162096,83.215,83.181,29.7588]
[1646615878092,1.62162096,83.216,83.181,29.7588]
[1646615878692,1.62162096,83.219,83.181,29.7588]
[1646615879092,1.62162096,83.22,83.181,29.7588]
[1646615879494,1.62162096,83.217,83.181,29.7588]
[1646615879691,1.62162096,83.216,83.181,29.7588]
[1646615879892,1.62162096,83.216,83.181,23.7498]
[1646615880293,1.62162096,83.214,83.181,23.7498]
[1646615881296,1.62162096,83.208,83.181,23.7498]
[1646615881694,1.62162096,83.206,83.17,60.27783797]
[1646615881893,1.62162096,83.202,83.17,60.27783797]
[1646615882096,1.62162096,83.2,83.17,60.27783797]
[1646615882493,1.62162096,83.202,83.17,60.27783797]
[1646615882694,1.62162096,83.203,83.17,60.27783797]
[1646615882894,1.62162096,83.202,83.17,60.27783797]
[1646615883095,1.62162096,83.206,83.171,6.01]
[1646615883394,1.62162096,83.206,83.171,30.6292]
[1646615883693,1.62162096,83.208,83.171,24.6192]
[1646615884594,1.62162096,83.206,83.171,24.6192]
[1646615884993,1.62162096,83.205,83.172,6.01]
[1646615885195,1.62162096,83.205,83.171,24.6192]
[1646615885396,1.62162096,83.202,83.171,24.6192]
[1646615885595,1.62162096,83.201,83.171,24.6192]
[1646615885995,1.62162096,83.2,83.171,24.6192]
[1646615886196,1.62162096,83.201,83.171,24.6192]
[1646615886395,1.62162096,83.2,83.171,24.6192]
[1646615886800,1.62162096,83.201,83.171,24.6192]
[1646615887199,1.62162096,83.201,83.171,30.6292]
[1646615888004,1.62162096,83.204,83.172,6.01]
[1646615888202,1.62162096,83.211,83.172,6.01]
[1646615888402,1.62162096,83.21,83.172,6.01]
[1646615889002,3.23658355,83.234,83.172,6.01]
[1646615889003,1.62162096,83.214,83.172,35.42678841]
[1646615889203,1.62838581,83.221,83.173,40.0]
[1646615889403,1.62838581,83.221,83.174,6.009]
[1646615889602,1.62838581,83.227,83.174,35.42578841]
[1646615889803,1.62838581,83.226,83.175,29.41678841]
[1646615890005,1.62838581,83.227,83.176,6.009]
[1646615890303,1.62838581,83.229,83.19,13.94]
[1646615890503,1.62838581,83.231,83.191,28.86]
[1646615890703,1.62838581,83.234,83.191,28.86]
[1646615891103,1.62838581,83.235,83.192,58.90661506]
[1646615891304,1.62838581,83.235,83.193,6.008]
[1646615891505,1.62838581,83.236,83.193,6.008]
[1646615891906,6.52218903,83.254,83.193,6.008]
[1646615892105,3.23658355,83.269,83.193,44.73531174]
[1646615892308,3.23658355,83.276,83.2,18.026]
[1646615892508,3.23658355,83.276,83.21,13.94]
[1646615892806,3.23658355,83.277,83.211,50.31600947]
[1646615893006,3.23658355,83.277,83.212,6.006]
[1646615893205,3.23658355,83.278,83.212,6.006]
[1646615894208,3.23658355,83.277,83.212,6.006]
[1646615894607,4.95819935,83.275,83.212,6.006]
[1646615894807,6.52218903,83.274,83.212,6.006]
[1646615895014,6.52218903,83.274,83.211,73.98770947]
[1646615895410,6.006,83.273,83.211,73.98770947]
[1646615895809,6.006,83.279,83.211,73.98770947]
[1646615896008,3.23658355,83.281,83.211,73.98770947]
[1646615896009,6.52188753,83.278,83.211,73.98770947]
[1646615896209,6.006,83.277,83.211,73.98770947]
[1646615896411,6.52188753,83.276,83.211,73.98770947]
[1646615896612,6.006,83.275,83.211,73.98770947]
[1646615896810,6.006,83.276,83.211,73.98770947]
[1646615897013,126.506,83.281,83.211,73.98770947]
[1646615897211,127.02231379,83.28,83.212,6.006]
[1646615897411,6.52231379,83.279,83.212,6.006]
[1646615897618,120.5,83.278,83.212,6.006]
[1646615897816,123.73658355,83.278,83.212,6.006]
[1646615898013,4.59309557,83.273,83.211,73.98770947]
[1646615898214,6.006,83.272,83.211,73.98770947]
[1646615898415,120.5,83.27,83.211,73.98770947]
[1646615898616,6.006,83.269,83.211,73.98770947]
[1646615898817,120.5,83.267,83.211,73.98770947]
[1646615899020,26.18437869,83.269,83.211,73.98770947]
[1646615899021,120.5,83.262,83.211,73.98770947]
[1646615899218,120.5,83.26,83.211,73.98770947]
[1646615899417,129.68,83.26,83.211,73.98770947]
[1646615899622,6.007,83.259,83.211,73.98770947]
[1646615900020,120.5,83.257,83.211,23.6717]
[1646615900223,5.02236564,83.255,83.191,6.007]
[1646615900418,5.02236564,83.255,83.168,17.7654]
[1646615900419,12.53130467,83.254,83.181,22.8659]
[1646615900620,120.5,83.253,83.181,22.8659]
[1646615900819,147.20766487,83.253,83.181,22.8659]
[1646615901019,120.5,83.251,83.181,76.80896706]
[1646615901219,120.5,83.251,83.166,31.03044929]
[1646615901220,120.5,83.244,83.166,31.03044929]
[1646615901418,126.46798787,83.236,83.151,31.03044929]
[1646615901619,72.26,83.229,83.15,13.94]
[1646615901919,120.5,83.224,83.15,13.94]
[1646615902120,120.5,83.222,83.15,13.94]
[1646615902318,138.5445,83.22,83.151,47.46844437]
[1646615902719,6.01,83.219,83.151,47.46844437]
[1646615902921,120.5,83.218,83.151,47.46844437]
[1646615903118,5.67788697,83.216,83.151,47.46844437]
[1646615903319,6.01,83.215,83.151,47.46844437]
[1646615903719,120.5,83.214,83.151,47.46844437]
[1646615903920,6.01,83.213,83.151,47.46844437]
[1646615904121,120.5,83.212,83.151,47.46844437]
[1646615904420,120.5,83.212,83.149,22.8659]
[1646615904421,6.01,83.211,83.149,22.8659]
[1646615904622,120.5,83.209,83.149,22.8659]
[1646615904820,5.55634213,83.207,83.141,23.7838]
[1646615905123,6.011,83.206,83.141,23.7838]